[Event "Titled Tuesday Blitz August 22 Early 2023"]
[White "Gogolev, Artem"]
[Black "Skaric, Djuro"]
[WhiteFideId "4116615"]
[BlackFideId "934569"]
[WhiteElo "2504"]
[BlackElo "2337"]
[Result "0-1"]
[Round "7"]
[TimeControl "180+1"]
[Date "2023.08.22"]
[WhiteClock "0:00:11"]
[BlackClock "0:01:34"]
[Board "128"]

1. d4 {[%clk 0:02:58]}  d6 {[%clk 0:03:00]} 2. Nf3 {[%clk 0:02:52]}  g6 {[%clk 0:03:01]} 3. c4 {[%clk 0:02:49]}  Bg7 {[%clk 0:03:02]} 4. Nc3 {[%clk 0:02:49]}  Nf6 {[%clk 0:03:02]} 5. Bg5 {[%clk 0:02:43]}  O-O {[%clk 0:03:03]} 6. e3 {[%clk 0:02:42]}  h6 {[%clk 0:03:03]} 7. Bh4 {[%clk 0:02:42]}  Nc6 {[%clk 0:03:03]} 8. Be2 {[%clk 0:02:25]}  e5 {[%clk 0:03:03]} 9. O-O {[%clk 0:02:21]}  g5 {[%clk 0:03:03]} 10. Bg3 {[%clk 0:02:20]}  Nd7 {[%clk 0:03:03]} 11. dxe5 {[%clk 0:02:08]}  dxe5 {[%clk 0:03:01]} 12. Nd2 {[%clk 0:01:21]}  f5 {[%clk 0:02:58]} 13. f3 {[%clk 0:01:16]}  Nc5 {[%clk 0:02:55]} 14. Qc2 {[%clk 0:01:14]}  Nb4 {[%clk 0:02:49]} 15. Qc1 {[%clk 0:01:06]}  f4 {[%clk 0:02:48]} 16. exf4 {[%clk 0:01:05]}  exf4 {[%clk 0:02:48]} 17. Bf2 {[%clk 0:00:59]}  Nbd3 {[%clk 0:02:47]} 18. Qc2 {[%clk 0:00:41]}  Nxf2 {[%clk 0:02:43]} 19. Kxf2 {[%clk 0:00:40]}  Bd4+ {[%clk 0:02:42]} 20. Ke1 {[%clk 0:00:39]}  Bxc3 {[%clk 0:02:40]} 21. Qxc3 {[%clk 0:00:31]}  Re8 {[%clk 0:02:40]} 22. Ne4 {[%clk 0:00:21]}  Nxe4 {[%clk 0:02:37]} 23. fxe4 {[%clk 0:00:22]}  Qe7 {[%clk 0:02:36]} 24. Rd1 {[%clk 0:00:17]}  Qxe4 {[%clk 0:02:34]} 25. Rf2 {[%clk 0:00:13]}  Bg4 {[%clk 0:02:31]} 26. Rd2 {[%clk 0:00:12]}  Rad8 {[%clk 0:02:30]} 27. Rxd8 {[%clk 0:00:11]}  Rxd8 {[%clk 0:02:29]} 28. Kf1 {[%clk 0:00:11]}  Bxe2+ {[%clk 0:01:39]} 29. Rxe2 {[%clk 0:00:11]}  Qd4 {[%clk 0:01:38]} 30. Qc2 {[%clk 0:00:08]}  Qd1+ {[%clk 0:01:36]} 31. Qxd1 {[%clk 0:00:08]}  Rxd1+ {[%clk 0:01:37]} 32. Kf2 {[%clk 0:00:09]}  Kf7 {[%clk 0:01:37]} 33. h4 {[%clk 0:00:09]}  Rd4 {[%clk 0:01:36]} 34. hxg5 {[%clk 0:00:10]}  hxg5 {[%clk 0:01:37]} 35. b3 {[%clk 0:00:10]}  Kf6 {[%clk 0:01:36]} 36. g3 {[%clk 0:00:10]}  Kf5 {[%clk 0:01:35]} 37. gxf4 {[%clk 0:00:10]}  gxf4 {[%clk 0:01:36]} 38. Re7 {[%clk 0:00:10]}  Rd2+ {[%clk 0:01:36]} 39. Kf3 {[%clk 0:00:10]}  Rxa2 {[%clk 0:01:36]} 40. Rf7+ {[%clk 0:00:10]}  Ke5 {[%clk 0:01:36]} 41. Rxc7 {[%clk 0:00:11]}  b6 {[%clk 0:01:36]} 42. Re7+ {[%clk 0:00:11]}  Kd4 {[%clk 0:01:35]} 43. Kxf4 {[%clk 0:00:11]}  Kc3 {[%clk 0:01:35]} 44. Re3+ {[%clk 0:00:12]}  Kb4 {[%clk 0:01:35]} 45. Rh3 {[%clk 0:00:10]}  Ra3 {[%clk 0:01:35]} 46. Rh7 {[%clk 0:00:10]}  Kxb3 {[%clk 0:01:35]} 47. c5 {[%clk 0:00:10]}  bxc5 {[%clk 0:01:35]} 48. Ke4 {[%clk 0:00:11]}  Kb4 {[%clk 0:01:34]} 49. Rb7+ {[%clk 0:00:10]}  Kc4 {[%clk 0:01:33]} 50. Rc7 {[%clk 0:00:09]}  Ra1 {[%clk 0:01:33]} 51. Ke3 {[%clk 0:00:09]}  Ra2 {[%clk 0:01:32]} 52. Rc8 {[%clk 0:00:09]}  a5 {[%clk 0:01:32]} 53. Rh8 {[%clk 0:00:09]}  a4 {[%clk 0:01:32]} 54. Rh1 {[%clk 0:00:09]}  Rc2 {[%clk 0:01:32]} 55. Rh4+ {[%clk 0:00:09]}  Kb3 {[%clk 0:01:31]} 56. Kd3 {[%clk 0:00:09]}  Rc3+ {[%clk 0:01:31]} 57. Kd2 {[%clk 0:00:10]}  c4 {[%clk 0:01:32]} 58. Rh8 {[%clk 0:00:10]}  Rc2+ {[%clk 0:01:32]} 59. Kd1 {[%clk 0:00:10]}  Rg2 {[%clk 0:01:31]} 60. Rb8+ {[%clk 0:00:09]}  Kc3 {[%clk 0:01:31]} 61. Ra8 {[%clk 0:00:09]}  Rg1+ {[%clk 0:01:32]} 62. Ke2 {[%clk 0:00:09]}  Ra1 {[%clk 0:01:32]} 63. Ra7 {[%clk 0:00:08]}  a3 {[%clk 0:01:32]} 64. Kf2 {[%clk 0:00:08]}  a2 {[%clk 0:01:32]} 65. Kg2 {[%clk 0:00:08]}  Kc2 {[%clk 0:01:32]} 66. Ra8 {[%clk 0:00:09]}  c3 {[%clk 0:01:33]} 67. Ra7 {[%clk 0:00:09]}  Rb1 {[%clk 0:01:32]} 68. Rxa2+ {[%clk 0:00:09]}  Rb2 {[%clk 0:01:33]} 69. Ra7 {[%clk 0:00:09]}  Kd1+ {[%clk 0:01:33]} 70. Kf3 {[%clk 0:00:10]}  c2 {[%clk 0:01:33]} 71. Rd7+ {[%clk 0:00:10]}  Kc1 {[%clk 0:01:34]} 72. Ke3 {[%clk 0:00:10]}  Kb1 {[%clk 0:01:33]} 73. Rc7 {[%clk 0:00:11]}  c1=Q+ {[%clk 0:01:34]} 74. Rxc1+ {[%clk 0:00:11]}  Kxc1 {[%clk 0:01:34]} 0-1


[Site "https://www.chess.com"]

[Event "Titled Tuesday Blitz August 22 Early 2023"]
[White "Pavlidis, Anastasios"]
[Black "Warchol, Kamil"]
[WhiteFideId "4208404"]
[BlackFideId "21858241"]
[WhiteElo "2333"]
[BlackElo "2504"]
[Result "1/2-1/2"]
[Round "7"]
[TimeControl "180+1"]
[Date "2023.08.22"]
[WhiteClock "0:00:07"]
[BlackClock "0:00:14"]
[Board "129"]

1. e4 {[%clk 0:03:00]}  c5 {[%clk 0:02:46]} 2. Nf3 {[%clk 0:02:55]}  d6 {[%clk 0:02:45]} 3. Bb5+ {[%clk 0:02:53]}  Nd7 {[%clk 0:02:45]} 4. d4 {[%clk 0:02:51]}  cxd4 {[%clk 0:02:46]} 5. Qxd4 {[%clk 0:02:51]}  a6 {[%clk 0:02:45]} 6. Be2 {[%clk 0:02:49]}  Ngf6 {[%clk 0:02:45]} 7. O-O {[%clk 0:02:48]}  b5 {[%clk 0:02:44]} 8. a4 {[%clk 0:02:47]}  bxa4 {[%clk 0:02:42]} 9. Rxa4 {[%clk 0:02:45]}  Bb7 {[%clk 0:02:42]} 10. Nc3 {[%clk 0:02:45]}  g6 {[%clk 0:02:41]} 11. Nd5 {[%clk 0:02:43]}  Bg7 {[%clk 0:02:37]} 12. Bg5 {[%clk 0:02:23]}  O-O {[%clk 0:02:34]} 13. Qd2 {[%clk 0:02:23]}  Bxd5 {[%clk 0:02:07]} 14. exd5 {[%clk 0:02:23]}  Nc5 {[%clk 0:02:08]} 15. Rh4 {[%clk 0:02:22]}  Nfe4 {[%clk 0:02:01]} 16. Qc1 {[%clk 0:02:20]}  Nxg5 {[%clk 0:01:57]} 17. Nxg5 {[%clk 0:02:17]}  h6 {[%clk 0:01:36]} 18. Nf3 {[%clk 0:02:09]}  Qb6 {[%clk 0:01:31]} 19. c3 {[%clk 0:02:02]}  Rab8 {[%clk 0:01:28]} 20. b4 {[%clk 0:02:00]}  Na4 {[%clk 0:01:24]} 21. Nd4 {[%clk 0:01:47]}  Rbc8 {[%clk 0:00:57]} 22. Nc6 {[%clk 0:01:43]}  Rc7 {[%clk 0:00:57]} 23. Rh3 {[%clk 0:01:31]}  e6 {[%clk 0:00:43]} 24. c4 {[%clk 0:01:26]}  Re8 {[%clk 0:00:35]} 25. Bf3 {[%clk 0:01:19]}  exd5 {[%clk 0:00:35]} 26. cxd5 {[%clk 0:01:18]}  Nc3 {[%clk 0:00:35]} 27. Re1 {[%clk 0:01:11]}  Rxe1+ {[%clk 0:00:25]} 28. Qxe1 {[%clk 0:01:10]}  Qb5 {[%clk 0:00:20]} 29. Qd2 {[%clk 0:00:58]}  Qc4 {[%clk 0:00:19]} 30. g3 {[%clk 0:00:41]}  Ne4 {[%clk 0:00:18]} 31. Bxe4 {[%clk 0:00:39]}  Qxe4 {[%clk 0:00:18]} 32. Rh4 {[%clk 0:00:39]}  Qb1+ {[%clk 0:00:16]} 33. Kg2 {[%clk 0:00:40]}  g5 {[%clk 0:00:16]} 34. Rc4 {[%clk 0:00:37]}  Qf5 {[%clk 0:00:16]} 35. h3 {[%clk 0:00:32]}  Kh8 {[%clk 0:00:15]} 36. Rc1 {[%clk 0:00:22]}  Qe4+ {[%clk 0:00:14]} 37. Kh2 {[%clk 0:00:21]}  Rc8 {[%clk 0:00:14]} 38. Re1 {[%clk 0:00:21]}  Qf3 {[%clk 0:00:14]} 39. Re3 {[%clk 0:00:19]}  Qf5 {[%clk 0:00:12]} 40. Ne7 {[%clk 0:00:19]}  Qc2 {[%clk 0:00:09]} 41. Re2 {[%clk 0:00:18]}  Qxd2 {[%clk 0:00:09]} 42. Rxd2 {[%clk 0:00:18]}  Rc4 {[%clk 0:00:09]} 43. Ra2 {[%clk 0:00:17]}  Rxb4 {[%clk 0:00:09]} 44. Rxa6 {[%clk 0:00:18]}  Rb2 {[%clk 0:00:09]} 45. Kg2 {[%clk 0:00:17]}  Bd4 {[%clk 0:00:09]} 46. Ra8+ {[%clk 0:00:17]}  Kh7 {[%clk 0:00:08]} 47. g4 {[%clk 0:00:17]}  Rxf2+ {[%clk 0:00:08]} 48. Kg3 {[%clk 0:00:17]}  Re2 {[%clk 0:00:05]} 49. Nf5 {[%clk 0:00:17]}  Be5+ {[%clk 0:00:06]} 50. Kf3 {[%clk 0:00:17]}  Rd2 {[%clk 0:00:06]} 51. Ra7 {[%clk 0:00:17]}  Rxd5 {[%clk 0:00:04]} 52. Rxf7+ {[%clk 0:00:17]}  Kg6 {[%clk 0:00:05]} 53. Rd7 {[%clk 0:00:15]}  Rd1 {[%clk 0:00:05]} 54. Ne7+ {[%clk 0:00:15]}  Kf7 {[%clk 0:00:05]} 55. Nc6+ {[%clk 0:00:13]}  Ke6 {[%clk 0:00:05]} 56. Re7+ {[%clk 0:00:13]}  Kd5 {[%clk 0:00:05]} 57. Nxe5 {[%clk 0:00:13]}  Rf1+ {[%clk 0:00:02]} 58. Ke2 {[%clk 0:00:12]}  Rh1 {[%clk 0:00:02]} 59. Nf3 {[%clk 0:00:10]}  Rxh3 {[%clk 0:00:02]} 60. Re3 {[%clk 0:00:10]}  Rg3 {[%clk 0:00:02]} 61. Rd3+ {[%clk 0:00:08]}  Kc5 {[%clk 0:00:01]} 62. Rd4 {[%clk 0:00:08]}  Rxf3 {[%clk 0:00:01]} 63. Rxd6 {[%clk 0:00:05]}  Kxd6 {[%clk 0:00:02]} 64. Kxf3 {[%clk 0:00:06]}  Ke5 {[%clk 0:00:02]} 65. Ke3 {[%clk 0:00:06]}  Kd5 {[%clk 0:00:03]} 66. Kd3 {[%clk 0:00:06]}  Ke5 {[%clk 0:00:03]} 67. Ke3 {[%clk 0:00:07]}  Kf6 {[%clk 0:00:04]} 68. Kd4 {[%clk 0:00:07]}  Ke6 {[%clk 0:00:05]} 69. Ke4 {[%clk 0:00:07]}  Kf6 {[%clk 0:00:06]} 70. Kf3 {[%clk 0:00:05]}  Ke6 {[%clk 0:00:04]} 71. Ke4 {[%clk 0:00:05]}  Kf6 {[%clk 0:00:04]} 72. Kf3 {[%clk 0:00:05]}  Kg6 {[%clk 0:00:05]} 73. Kg3 {[%clk 0:00:04]}  h5 {[%clk 0:00:05]} 74. gxh5+ {[%clk 0:00:04]}  Kxh5 {[%clk 0:00:06]} 75. Kh3 {[%clk 0:00:05]}  Kh6 {[%clk 0:00:04]} 76. Kg4 {[%clk 0:00:05]}  Kg6 {[%clk 0:00:05]} 77. Kg3 {[%clk 0:00:05]}  Kf6 {[%clk 0:00:06]} 78. Kf3 {[%clk 0:00:05]}  Kg6 {[%clk 0:00:07]} 79. Kg3 {[%clk 0:00:05]}  Kh5 {[%clk 0:00:07]} 80. Kh3 {[%clk 0:00:05]}  g4+ {[%clk 0:00:08]} 81. Kg3 {[%clk 0:00:06]}  Kg5 {[%clk 0:00:09]} 82. Kg2 {[%clk 0:00:06]}  Kf5 {[%clk 0:00:10]} 83. Kg3 {[%clk 0:00:06]}  Kg5 {[%clk 0:00:11]} 84. Kg2 {[%clk 0:00:06]}  Kh4 {[%clk 0:00:12]} 85. Kh2 {[%clk 0:00:07]}  Kh5 {[%clk 0:00:13]} 86. Kg3 {[%clk 0:00:07]}  Kg5 {[%clk 0:00:14]} 1/2-1/2


[Site "https://www.chess.com"]

[Event "Titled Tuesday Blitz August 22 Early 2023"]
[White "Osinovsky, Stepan"]
[Black "Korelskiy, Egor"]
[WhiteFideId "4157354"]
[BlackFideId "34329064"]
[WhiteElo "2322"]
[BlackElo "2502"]
[Result "0-1"]
[Round "7"]
[TimeControl "180+1"]
[Date "2023.08.22"]
[WhiteClock "0:00:08"]
[BlackClock "0:00:07"]
[Board "131"]

1. Nf3 {[%clk 0:03:00]}  d5 {[%clk 0:02:59]} 2. g3 {[%clk 0:03:00]}  Bg4 {[%clk 0:02:59]} 3. Bg2 {[%clk 0:03:00]}  Nd7 {[%clk 0:02:58]} 4. O-O {[%clk 0:02:58]}  c6 {[%clk 0:02:57]} 5. b3 {[%clk 0:02:57]}  Ngf6 {[%clk 0:02:54]} 6. Bb2 {[%clk 0:02:57]}  e6 {[%clk 0:02:54]} 7. d3 {[%clk 0:02:55]}  Bd6 {[%clk 0:02:54]} 8. Nbd2 {[%clk 0:02:55]}  O-O {[%clk 0:02:54]} 9. a3 {[%clk 0:02:54]}  a5 {[%clk 0:02:53]} 10. c4 {[%clk 0:02:53]}  Qc7 {[%clk 0:02:52]} 11. Rc1 {[%clk 0:02:49]}  Rfe8 {[%clk 0:02:50]} 12. Rc2 {[%clk 0:02:47]}  Rad8 {[%clk 0:02:48]} 13. Qa1 {[%clk 0:02:46]}  Qb8 {[%clk 0:02:42]} 14. Bc3 {[%clk 0:02:31]}  b6 {[%clk 0:02:40]} 15. Nd4 {[%clk 0:02:25]}  Rc8 {[%clk 0:02:22]} 16. cxd5 {[%clk 0:02:05]}  cxd5 {[%clk 0:02:16]} 17. N2f3 {[%clk 0:01:51]}  e5 {[%clk 0:02:10]} 18. Nb5 {[%clk 0:01:49]}  d4 {[%clk 0:02:09]} 19. Nbxd4 {[%clk 0:01:05]}  exd4 {[%clk 0:02:07]} 20. Nxd4 {[%clk 0:01:06]}  Be5 {[%clk 0:01:34]} 21. Nc6 {[%clk 0:00:43]}  Bxc3 {[%clk 0:01:30]} 22. Rxc3 {[%clk 0:00:30]}  Qd6 {[%clk 0:01:28]} 23. Rfc1 {[%clk 0:00:25]}  Kh8 {[%clk 0:01:18]} 24. e4 {[%clk 0:00:24]}  Nc5 {[%clk 0:01:10]} 25. e5 {[%clk 0:00:18]}  Qe6 {[%clk 0:00:50]} 26. exf6 {[%clk 0:00:18]}  Rxc6 {[%clk 0:00:20]} 27. fxg7+ {[%clk 0:00:18]}  Kg8 {[%clk 0:00:20]} 28. b4 {[%clk 0:00:18]}  Nb3 {[%clk 0:00:08]} 29. Rxc6 {[%clk 0:00:19]}  Qe7 {[%clk 0:00:08]} 30. Qc3 {[%clk 0:00:17]}  Nxc1 {[%clk 0:00:08]} 31. Qxc1 {[%clk 0:00:14]}  Qe1+ {[%clk 0:00:08]} 32. Qxe1 {[%clk 0:00:12]}  Rxe1+ {[%clk 0:00:07]} 33. Bf1 {[%clk 0:00:12]}  Bh3 {[%clk 0:00:07]} 34. Rc1 {[%clk 0:00:08]}  Rxc1 {[%clk 0:00:07]} 0-1


[Site "https://www.chess.com"]

[Event "Titled Tuesday Blitz August 22 Early 2023"]
[White "Buchenau, Frank"]
[Black "Kozin, Yuri"]
[WhiteFideId "4604350"]
[BlackFideId "4129920"]
[WhiteElo "2420"]
[BlackElo "2560"]
[Result "1/2-1/2"]
[Round "7"]
[TimeControl "180+1"]
[Date "2023.08.22"]
[WhiteClock "0:00:09"]
[BlackClock "0:00:28"]
[Board "137"]

1. e4 {[%clk 0:03:00]}  c5 {[%clk 0:03:00]} 2. Nf3 {[%clk 0:03:00]}  e6 {[%clk 0:03:00]} 3. d4 {[%clk 0:03:00]}  cxd4 {[%clk 0:03:01]} 4. Nxd4 {[%clk 0:03:01]}  Nf6 {[%clk 0:03:02]} 5. Nc3 {[%clk 0:03:00]}  d6 {[%clk 0:03:02]} 6. g4 {[%clk 0:02:57]}  h6 {[%clk 0:03:02]} 7. h4 {[%clk 0:02:56]}  Nc6 {[%clk 0:03:02]} 8. g5 {[%clk 0:02:46]}  hxg5 {[%clk 0:03:00]} 9. Bxg5 {[%clk 0:02:46]}  Bd7 {[%clk 0:02:50]} 10. Qd2 {[%clk 0:02:41]}  Be7 {[%clk 0:02:39]} 11. Ndb5 {[%clk 0:02:40]}  Qb8 {[%clk 0:02:31]} 12. O-O-O {[%clk 0:02:39]}  a6 {[%clk 0:02:13]} 13. Nxd6+ {[%clk 0:02:38]}  Bxd6 {[%clk 0:02:13]} 14. Qxd6 {[%clk 0:02:38]}  Qxd6 {[%clk 0:02:14]} 15. Rxd6 {[%clk 0:02:38]}  O-O-O {[%clk 0:02:14]} 16. Be2 {[%clk 0:02:26]}  Kc7 {[%clk 0:02:10]} 17. Rhd1 {[%clk 0:02:18]}  b5 {[%clk 0:02:10]} 18. f4 {[%clk 0:02:08]}  b4 {[%clk 0:02:05]} 19. Na4 {[%clk 0:02:06]}  e5 {[%clk 0:01:44]} 20. Nc5 {[%clk 0:01:55]}  Bc8 {[%clk 0:01:36]} 21. Rxd8 {[%clk 0:01:18]}  Rxd8 {[%clk 0:01:35]} 22. Rxd8 {[%clk 0:01:17]}  Kxd8 {[%clk 0:01:32]} 23. h5 {[%clk 0:01:08]}  Ke8 {[%clk 0:01:00]} 24. h6 {[%clk 0:01:05]}  Kf8 {[%clk 0:00:58]} 25. fxe5 {[%clk 0:00:38]}  Nxe5 {[%clk 0:00:56]} 26. hxg7+ {[%clk 0:00:33]}  Kxg7 {[%clk 0:00:56]} 27. Bxa6 {[%clk 0:00:29]}  Bxa6 {[%clk 0:00:51]} 28. Bxf6+ {[%clk 0:00:29]}  Kxf6 {[%clk 0:00:51]} 29. Nxa6 {[%clk 0:00:29]}  Nc4 {[%clk 0:00:51]} 30. Nxb4 {[%clk 0:00:27]}  Ke5 {[%clk 0:00:50]} 31. b3 {[%clk 0:00:26]}  Nd6 {[%clk 0:00:44]} 32. a4 {[%clk 0:00:23]}  Kxe4 {[%clk 0:00:43]} 33. a5 {[%clk 0:00:21]}  Kd4 {[%clk 0:00:41]} 34. Kb2 {[%clk 0:00:18]}  Kc5 {[%clk 0:00:40]} 35. Nd3+ {[%clk 0:00:17]}  Kb5 {[%clk 0:00:40]} 36. b4 {[%clk 0:00:16]}  f5 {[%clk 0:00:39]} 37. Kb3 {[%clk 0:00:14]}  Nc4 {[%clk 0:00:37]} 38. a6 {[%clk 0:00:13]}  Nd2+ {[%clk 0:00:37]} 39. Kc3 {[%clk 0:00:13]}  Ne4+ {[%clk 0:00:37]} 40. Kd4 {[%clk 0:00:13]}  Kxa6 {[%clk 0:00:37]} 41. c4 {[%clk 0:00:10]}  Kb6 {[%clk 0:00:34]} 42. Ke5 {[%clk 0:00:09]}  Nd2 {[%clk 0:00:30]} 43. Nb2 {[%clk 0:00:09]}  Nxc4+ {[%clk 0:00:29]} 44. Nxc4+ {[%clk 0:00:09]}  Kb5 {[%clk 0:00:28]} 45. Nd6+ {[%clk 0:00:08]}  Kxb4 {[%clk 0:00:28]} 46. Nxf5 {[%clk 0:00:09]} 1/2-1/2


[Site "https://www.chess.com"]

[Event "Titled Tuesday Blitz August 22 Early 2023"]
[White "Cheer_Down"]
[Black "Sanduleac, Vasile"]
[BlackFideId "13900161"]
[WhiteElo "2397"]
[BlackElo "2503"]
[Result "1/2-1/2"]
[Round "7"]
[TimeControl "180+1"]
[Date "2023.08.22"]
[WhiteClock "0:00:08"]
[BlackClock "0:00:24"]
[Board "141"]

1. e4 {[%clk 0:02:59]}  g6 {[%clk 0:02:59]} 2. d4 {[%clk 0:02:59]}  Bg7 {[%clk 0:02:59]} 3. Nf3 {[%clk 0:02:57]}  d6 {[%clk 0:02:59]} 4. Bc4 {[%clk 0:02:57]}  c6 {[%clk 0:02:58]} 5. Bb3 {[%clk 0:02:57]}  Nf6 {[%clk 0:02:58]} 6. Qe2 {[%clk 0:02:56]}  O-O {[%clk 0:02:57]} 7. e5 {[%clk 0:02:56]}  dxe5 {[%clk 0:02:57]} 8. dxe5 {[%clk 0:02:57]}  Nd5 {[%clk 0:02:57]} 9. O-O {[%clk 0:02:55]}  Na6 {[%clk 0:02:56]} 10. Rd1 {[%clk 0:02:53]}  Qc7 {[%clk 0:02:47]} 11. h3 {[%clk 0:02:52]}  Nc5 {[%clk 0:02:44]} 12. Nc3 {[%clk 0:02:42]}  Nxc3 {[%clk 0:02:42]} 13. bxc3 {[%clk 0:02:42]}  Nxb3 {[%clk 0:02:41]} 14. axb3 {[%clk 0:02:41]}  b6 {[%clk 0:02:41]} 15. Bf4 {[%clk 0:02:39]}  Bb7 {[%clk 0:02:40]} 16. Bg3 {[%clk 0:02:34]}  c5 {[%clk 0:02:36]} 17. e6 {[%clk 0:02:29]}  Qc6 {[%clk 0:02:36]} 18. exf7+ {[%clk 0:02:27]}  Rxf7 {[%clk 0:02:36]} 19. Be5 {[%clk 0:02:05]}  Bh6 {[%clk 0:02:28]} 20. c4 {[%clk 0:01:54]}  a5 {[%clk 0:02:26]} 21. Rd3 {[%clk 0:01:53]}  Raf8 {[%clk 0:02:25]} 22. Rad1 {[%clk 0:01:52]}  Qe6 {[%clk 0:02:23]} 23. Re1 {[%clk 0:01:41]}  Bxf3 {[%clk 0:02:22]} 24. Rxf3 {[%clk 0:01:41]}  Rxf3 {[%clk 0:02:21]} 25. gxf3 {[%clk 0:01:41]}  Qxh3 {[%clk 0:02:21]} 26. Bg3 {[%clk 0:01:39]}  Rf7 {[%clk 0:02:17]} 27. Qe6 {[%clk 0:01:36]}  Qf5 {[%clk 0:01:53]} 28. Qxb6 {[%clk 0:01:29]}  Qxf3 {[%clk 0:01:53]} 29. Qd8+ {[%clk 0:01:27]}  Bf8 {[%clk 0:01:51]} 30. Qd5 {[%clk 0:01:25]}  Qf5 {[%clk 0:01:48]} 31. Re3 {[%clk 0:01:08]}  Qxc2 {[%clk 0:01:43]} 32. Rf3 {[%clk 0:00:57]}  e6 {[%clk 0:01:43]} 33. Qd3 {[%clk 0:00:50]}  Qxd3 {[%clk 0:01:42]} 34. Rxd3 {[%clk 0:00:51]}  Rb7 {[%clk 0:01:40]} 35. Rd8 {[%clk 0:00:48]}  Kf7 {[%clk 0:01:38]} 36. Ra8 {[%clk 0:00:48]}  Rxb3 {[%clk 0:01:37]} 37. Rxa5 {[%clk 0:00:49]}  Rb7 {[%clk 0:01:35]} 38. Rb5 {[%clk 0:00:46]}  Rd7 {[%clk 0:01:34]} 39. Bf4 {[%clk 0:00:43]}  Rd4 {[%clk 0:01:32]} 40. Rb7+ {[%clk 0:00:42]}  Be7 {[%clk 0:01:28]} 41. Be5 {[%clk 0:00:37]}  Rd8 {[%clk 0:01:20]} 42. Kg2 {[%clk 0:00:36]}  Ke8 {[%clk 0:01:19]} 43. Rc7 {[%clk 0:00:32]}  h5 {[%clk 0:01:18]} 44. f4 {[%clk 0:00:31]}  Rd3 {[%clk 0:01:14]} 45. Rc6 {[%clk 0:00:29]}  Rd2+ {[%clk 0:00:56]} 46. Kf3 {[%clk 0:00:28]}  Rc2 {[%clk 0:00:57]} 47. Rxe6 {[%clk 0:00:26]}  Kf7 {[%clk 0:00:57]} 48. Rc6 {[%clk 0:00:26]}  Rxc4 {[%clk 0:00:57]} 49. Rc7 {[%clk 0:00:27]}  Ke8 {[%clk 0:00:56]} 50. Rc6 {[%clk 0:00:25]}  g5 {[%clk 0:00:56]} 51. f5 {[%clk 0:00:23]}  g4+ {[%clk 0:00:53]} 52. Ke3 {[%clk 0:00:18]}  Bg5+ {[%clk 0:00:35]} 53. Kd3 {[%clk 0:00:17]}  Rc1 {[%clk 0:00:33]} 54. f6 {[%clk 0:00:16]}  Rd1+ {[%clk 0:00:32]} 55. Ke4 {[%clk 0:00:15]}  Rf1 {[%clk 0:00:31]} 56. Kd5 {[%clk 0:00:14]}  Bxf6 {[%clk 0:00:25]} 57. Rxf6 {[%clk 0:00:11]}  Rxf6 {[%clk 0:00:22]} 58. Bxf6 {[%clk 0:00:11]}  g3 {[%clk 0:00:22]} 59. Bh4 {[%clk 0:00:08]}  g2 {[%clk 0:00:22]} 60. Bf2 {[%clk 0:00:08]}  h4 {[%clk 0:00:22]} 61. Bg1 {[%clk 0:00:08]}  h3 {[%clk 0:00:22]} 62. Kxc5 {[%clk 0:00:08]}  Kf7 {[%clk 0:00:22]} 63. Kd4 {[%clk 0:00:09]}  Kg6 {[%clk 0:00:23]} 64. Ke3 {[%clk 0:00:09]}  Kg5 {[%clk 0:00:24]} 65. Kf3 {[%clk 0:00:10]}  Kh4 {[%clk 0:00:24]} 66. Kf2 {[%clk 0:00:09]}  Kg4 {[%clk 0:00:24]} 67. Bh2 {[%clk 0:00:09]}  Kf5 {[%clk 0:00:24]} 68. Kg3 {[%clk 0:00:08]}  Ke4 {[%clk 0:00:23]} 69. Kxh3 {[%clk 0:00:08]}  Kf3 {[%clk 0:00:24]} 70. Bg1 {[%clk 0:00:08]}  Ke2 {[%clk 0:00:24]} 71. Kxg2 {[%clk 0:00:08]} 1/2-1/2


[Site "https://www.chess.com"]

[Event "Titled Tuesday Blitz August 22 Early 2023"]
[White "Szyszylo, Rafal"]
[Black "Pavlidou, Ekaterini"]
[WhiteFideId "1109626"]
[BlackFideId "4213262"]
[WhiteElo "2450"]
[BlackElo "2362"]
[Result "1-0"]
[Round "7"]
[TimeControl "180+1"]
[Date "2023.08.22"]
[WhiteClock "0:00:14"]
[BlackClock "0:01:00"]
[Board "145"]

1. e4 {[%clk 0:03:00]}  c5 {[%clk 0:02:59]} 2. Nc3 {[%clk 0:03:00]}  Nc6 {[%clk 0:02:59]} 3. Bb5 {[%clk 0:03:00]}  Nd4 {[%clk 0:02:57]} 4. Nf3 {[%clk 0:03:00]}  e6 {[%clk 0:02:54]} 5. O-O {[%clk 0:02:59]}  a6 {[%clk 0:02:53]} 6. Bd3 {[%clk 0:02:56]}  b5 {[%clk 0:02:52]} 7. Nxd4 {[%clk 0:02:56]}  cxd4 {[%clk 0:02:53]} 8. Ne2 {[%clk 0:02:56]}  Bc5 {[%clk 0:02:52]} 9. c3 {[%clk 0:02:53]}  dxc3 {[%clk 0:02:51]} 10. dxc3 {[%clk 0:02:53]}  Ne7 {[%clk 0:02:51]} 11. Ng3 {[%clk 0:02:51]}  Bb7 {[%clk 0:02:50]} 12. Qh5 {[%clk 0:02:17]}  d5 {[%clk 0:02:44]} 13. Bg5 {[%clk 0:01:54]}  d4 {[%clk 0:02:26]} 14. Rad1 {[%clk 0:01:46]}  Qb6 {[%clk 0:02:06]} 15. cxd4 {[%clk 0:01:41]}  Bxd4 {[%clk 0:02:04]} 16. Bxe7 {[%clk 0:01:34]}  Kxe7 {[%clk 0:02:04]} 17. e5 {[%clk 0:01:18]}  f5 {[%clk 0:01:58]} 18. Bxf5 {[%clk 0:00:47]}  Raf8 {[%clk 0:01:51]} 19. Qh4+ {[%clk 0:00:38]}  Ke8 {[%clk 0:01:49]} 20. Rxd4 {[%clk 0:00:35]}  exf5 {[%clk 0:01:48]} 21. Rfd1 {[%clk 0:00:24]}  Kf7 {[%clk 0:01:23]} 22. Nxf5 {[%clk 0:00:22]}  Kg8 {[%clk 0:01:12]} 23. Ne7+ {[%clk 0:00:22]}  Kf7 {[%clk 0:01:12]} 24. Rd7 {[%clk 0:00:21]}  Rd8 {[%clk 0:01:02]} 25. Qf4+ {[%clk 0:00:15]}  Ke6 {[%clk 0:01:00]} 26. Qf5# {[%clk 0:00:14]} 1-0


[Site "https://www.chess.com"]